bitfinex-derivatives/quotes_BTCF0:USTF0_20251023
["timestamp","ask_amount","ask_price","bid_price","bid_amount"]
[1761221231152,0.02324,109030.0,109020.0,0.1534567]
[1761221231354,0.02324,109030.0,109020.0,0.1554567]
[1761221231549,0.05988,109040.0,109030.0,0.1360724]
[1761221231854,0.114934,109040.0,109030.0,0.1360724]
[1761221232255,0.137594,109040.0,109030.0,0.04437]
[1761221232553,0.151574,109040.0,109030.0,0.04437]
[1761221233046,0.151574,109040.0,109030.0,0.1360724]
[1761221233246,0.137594,109040.0,109030.0,0.1360724]
[1761221233652,0.0459,109040.0,109030.0,0.1360724]
[1761221233952,0.151574,109040.0,109030.0,0.04437]
[1761221234546,0.151574,109040.0,109030.0,0.1380724]
[1761221234748,0.137594,109040.0,109030.0,0.1380724]
[1761221236158,0.33887525,109040.0,109030.0,0.04637]
[1761221236548,0.33887525,109040.0,109030.0,0.002]
[1761221238943,0.0997961,109020.0,109010.0,0.02194604]
[1761221239254,0.34697735,109020.0,109010.0,7.604e-05]
[1761221240158,0.34697735,109020.0,109010.0,0.00107604]
[1761221240349,0.74797735,109020.0,109010.0,0.00107604]
[1761221240552,0.74797735,109020.0,108980.0,0.04895779]
[1761221240553,0.137636,108990.0,108980.0,0.04895779]
[1761221241252,0.1516076,109000.0,108990.0,0.136106]
[1761221241450,0.15168364,109000.0,108990.0,0.136106]
[1761221242058,0.05995604,109000.0,108990.0,0.136106]
[1761221242362,7.604e-05,109000.0,108990.0,0.72340725]
[1761221242857,7.604e-05,109000.0,108990.0,0.536106]
[1761221243750,7.604e-05,109000.0,108990.0,0.537106]
[1761221243956,7.604e-05,109000.0,108990.0,0.72440725]
[1761221245651,7.604e-05,109000.0,108990.0,0.537106]
[1761221245958,7.604e-05,109000.0,108990.0,0.72440725]
[1761221247456,0.09180364,109000.0,108990.0,0.72440725]
[1761221247656,0.09180364,109000.0,108990.0,0.537106]
[1761221247859,0.11396364,109000.0,108990.0,0.137106]
[1761221248058,7.604e-05,109000.0,108990.0,0.137106]
[1761221248259,7.604e-05,109000.0,108990.0,0.72440725]
[1761221248662,0.09180364,109000.0,108990.0,0.72440725]
[1761221249755,0.13523364,109000.0,108990.0,0.137106]
[1761221249950,0.14918364,109000.0,108990.0,0.137106]
[1761221250156,0.14918364,109000.0,108990.0,0.04537]
[1761221251262,7.604e-05,109000.0,108990.0,0.137106]
[1761221251758,0.09180364,109000.0,108990.0,0.137106]
[1761221252060,7.604e-05,109000.0,108990.0,0.72440725]
[1761221253265,7.604e-05,109000.0,108990.0,0.72340725]
[1761221253466,0.09180364,109000.0,108990.0,0.72440725]
[1761221253660,7.604e-05,109000.0,108990.0,0.72440725]
[1761221257667,7.604e-05,109000.0,108990.0,0.87280725]
[1761221258362,0.04343,109030.0,109020.0,0.1378007]
[1761221258574,0.16879979,109040.0,109020.0,0.1378007]
[1761221258575,0.23122775,109040.0,109030.0,0.1377923]
[1761221258758,0.14122442,109040.0,109030.0,0.1377923]
[1761221259570,0.04953032,109040.0,109030.0,0.1377923]
[1761221260068,0.14322422,109040.0,109030.0,0.1377923]
[1761221260663,0.14122422,109040.0,109030.0,0.1377923]
[1761221263670,0.15517422,109040.0,109030.0,0.04609]
[1761221263972,0.14123345,109030.0,109020.0,0.4700408]
[1761221264172,0.14123345,109030.0,109020.0,0.4700008]
[1761221264674,0.3285347,109030.0,109020.0,0.4700008]
[1761221265068,0.14123345,109030.0,109020.0,0.4700008]
[1761221265772,0.14123345,109030.0,109020.0,0.4710008]
[1761221268079,0.04953115,109030.0,109020.0,0.4843108]
[1761221268874,0.14123345,109030.0,109020.0,0.4843108]
[1761221269179,0.02826115,109030.0,109020.0,0.67161205]
[1761221269574,0.14123355,109030.0,109020.0,0.4843108]
[1761221270171,0.00610115,109030.0,109020.0,0.67161205]
[1761221270567,0.14123345,109030.0,109020.0,0.001]
[1761221270878,0.87997867,109030.0,109020.0,0.1155007]
[1761221271080,0.54123345,109030.0,109020.0,0.1388007]
[1761221271282,0.56562039,109030.0,109020.0,0.1388007]
[1761221271672,0.56562039,109030.0,109020.0,0.04709]
[1761221272070,0.56562039,109030.0,109020.0,0.1388008]
[1761221274076,0.07391809,109030.0,109020.0,0.1388008]
[1761221274286,0.14123345,109030.0,109020.0,0.1527908]
[1761221275981,0.1351323,109030.0,109020.0,0.14668892]
[1761221276186,0.15951924,109030.0,109020.0,0.13269892]
[1761221277986,0.15951924,109030.0,109020.0,0.14668892]
[1761221278686,0.1351323,109030.0,109020.0,0.14668892]
[1761221279990,0.1351323,109030.0,109020.0,0.13269892]
[1761221280290,0.15951924,109030.0,109020.0,0.13269892]
[1761221280788,0.15951924,109030.0,109020.0,0.04098812]
[1761221281286,0.15951924,109030.0,109020.0,0.13269882]
[1761221281687,0.15951924,109030.0,109020.0,0.04098812]
[1761221281886,0.1359592,109010.0,109000.0,0.481482]
[1761221282193,0.1491376,109000.0,108990.0,0.1360598]
[1761221282395,0.135976,108990.0,108980.0,0.04891779]
[1761221282703,0.45033428,108990.0,108980.0,0.00458779]
[1761221282895,0.47472122,108990.0,108980.0,0.04891779]
[1761221283095,0.16036294,108990.0,108980.0,0.04891779]
[1761221283301,0.135976,108990.0,108980.0,0.04891779]
[1761221284797,0.135976,108990.0,108980.0,0.14066219]
[1761221285190,0.135976,108990.0,108980.0,0.00458779]
[1761221285390,0.04424,108970.0,108960.0,0.4680909]
[1761221285796,0.1359928,108970.0,108960.0,0.4680909]
[1761221285990,0.1359928,108970.0,108960.0,0.4820809]
[1761221287196,0.1359928,108970.0,108960.0,0.4830809]
[1761221287598,0.1359928,108970.0,108960.0,0.37733]
[1761221287999,0.45035108,108970.0,108960.0,0.001]
[1761221288599,0.85035108,108970.0,108960.0,0.01456142]
[1761221288805,0.87473802,108970.0,108960.0,0.01456142]
[1761221289000,0.87473802,108970.0,108940.0,0.00470186]
[1761221289001,0.1360097,108950.0,108940.0,0.00470186]
[1761221289206,0.45036798,108950.0,108940.0,0.01841305]
[1761221289503,0.85044947,108950.0,108900.0,1.61038846]
[1761221289701,0.02134,108920.0,108910.0,0.4681334]
[1761221290002,0.1360265,108930.0,108920.0,0.04433]
[1761221290498,0.13613889,108930.0,108920.0,0.136125]
[1761221290702,0.13613889,108930.0,108920.0,0.150115]
[1761221291105,0.04435239,108930.0,108920.0,0.150115]
[1761221291702,0.13613889,108930.0,108920.0,0.150115]
[1761221292102,0.04435239,108930.0,108920.0,0.150115]
[1761221292302,0.04435239,108930.0,108920.0,0.151115]
[1761221292503,0.00011239,108930.0,108920.0,0.46547328]
[1761221292708,0.00011239,108930.0,108920.0,0.86547328]
[1761221293114,0.05741,108960.0,108950.0,0.1360997]
[1761221293608,0.04424,108960.0,108950.0,0.1360997]
[1761221294296,0.02134,108960.0,108950.0,0.1360997]
[1761221294497,0.02234,108960.0,108950.0,0.1360997]
[1761221294901,0.1511712,108960.0,108950.0,0.04433]
[1761221295110,0.1511712,108960.0,108950.0,0.1360997]
[1761221295305,0.04624,108960.0,108950.0,0.1360997]
[1761221295516,0.1380013,108960.0,108950.0,0.1360997]
[1761221295718,0.04624,108960.0,108950.0,0.1360997]
[1761221296015,0.1370013,108960.0,108950.0,0.1360997]
[1761221296718,0.1360013,108960.0,108950.0,0.1360997]
[1761221296915,0.05741,108960.0,108920.0,0.240195]
[1761221297220,0.1491881,108940.0,108930.0,0.1361165]
[1761221297622,0.46354638,108940.0,108930.0,0.04433]
[1761221298119,0.1491881,108940.0,108930.0,0.04433]
[1761221299527,0.1491881,108940.0,108930.0,0.1361165]
[1761221300324,0.1491881,108940.0,108930.0,0.04433]
[1761221301724,0.1360265,108930.0,108920.0,0.33204]
[1761221301928,0.45038478,108930.0,108920.0,0.01361353]
[1761221302813,0.1360265,108930.0,108920.0,0.16422853]
[1761221303121,0.02134,108930.0,108920.0,0.16422853]
[1761221303328,0.1361665,108930.0,108920.0,0.16422853]
[1761221303626,0.1361665,108930.0,108920.0,0.05855353]
[1761221303824,0.1361665,108930.0,108920.0,0.15034853]
[1761221304024,0.1361665,108930.0,108920.0,0.04494]
[1761221304319,0.1361665,108930.0,108920.0,0.136735]
[1761221305922,0.04438,108930.0,108920.0,0.150375]
[1761221306125,0.1361665,108930.0,108920.0,0.150375]
[1761221306324,0.1361665,108930.0,108920.0,0.136735]
[1761221306726,0.04438,108930.0,108920.0,0.136735]
[1761221307024,0.1361665,108930.0,108920.0,0.150375]
[1761221311821,0.04438,108930.0,108920.0,0.150375]
[1761221312222,0.1361665,108930.0,108920.0,0.150375]
[1761221313032,0.04438,108930.0,108920.0,0.150375]
[1761221313333,0.1361665,108930.0,108920.0,0.150375]
[1761221313922,0.04438,108930.0,108920.0,0.150375]
[1761221314139,0.04438,108930.0,108920.0,0.482415]
[1761221315530,0.1361665,108930.0,108920.0,0.482415]
[1761221316230,0.46433478,108930.0,108920.0,0.33304]
[1761221316432,0.86433478,108930.0,108920.0,0.4248349]
[1761221316633,0.5499765,108930.0,108920.0,0.4679849]
[1761221316928,0.57422778,108930.0,108920.0,0.35518]
[1761221317125,0.57422778,108930.0,108920.0,0.33304]
[1761221317321,0.57422778,108930.0,108920.0,0.4248349]
[1761221317521,0.57422778,108930.0,108920.0,0.4679849]
[1761221317932,0.17422778,108930.0,108920.0,0.37619]
[1761221318132,0.17422778,108930.0,108920.0,0.33304]
[1761221318936,0.17422778,108930.0,108920.0,0.35518]
[1761221319239,0.17422778,108930.0,108920.0,0.446975]
[1761221319431,0.17422778,108930.0,108920.0,0.35518]
[1761221320240,0.17422778,108930.0,108920.0,0.33304]
[1761221320541,0.48858606,108930.0,108920.0,0.33304]
[1761221321038,0.17422778,108930.0,108920.0,0.424835]
[1761221321241,0.17422778,108930.0,108920.0,0.467985]
[1761221322037,0.17422778,108930.0,108920.0,0.37619]
[1761221322943,0.48858606,108930.0,108920.0,0.37619]
[1761221323130,0.88858606,108930.0,108920.0,0.001]
[1761221323336,0.48858606,108930.0,108920.0,0.001]
[1761221323532,0.52122219,108930.0,108920.0,0.001]
[1761221324041,0.85318219,108930.0,108920.0,0.001]
[1761221326028,0.86227327,108930.0,108920.0,0.001]
[1761221326436,0.83802199,108930.0,108920.0,0.001]
[1761221326843,0.52366371,108930.0,108920.0,0.001]
[1761221327143,0.83802199,108930.0,108920.0,0.001]
[1761221327843,0.86246611,108930.0,108920.0,0.001]
[1761221328244,0.83802199,108930.0,108920.0,0.001]
[1761221328740,0.1492334,108910.0,108900.0,0.00459116]
[1761221328930,0.1736737,108910.0,108900.0,0.00459116]
[1761221329135,0.49617874,108910.0,108900.0,0.00459116]
[1761221329437,1.24439228,108910.0,108900.0,0.00459116]
[1761221329629,1.24439228,108910.0,108890.0,0.0918201]
[1761221329830,0.20623081,108900.0,108890.0,0.0918201]
[1761221330439,0.17366566,108900.0,108890.0,0.0918201]
[1761221330841,0.36162615,108900.0,108890.0,0.0918201]
[1761221331040,0.17366566,108900.0,108890.0,0.1139601]
[1761221331242,0.08185386,108900.0,108890.0,0.1349701]
[1761221331444,0.06804386,108900.0,108890.0,0.1486101]
[1761221331741,0.04362,108900.0,108890.0,0.1486101]
[1761221331945,0.1354318,108900.0,108890.0,0.1486101]
[1761221332137,0.1492418,108900.0,108890.0,0.1349701]
[1761221333042,0.1492418,108900.0,108890.0,0.04315]
[1761221333242,0.1492418,108900.0,108890.0,0.1349702]
[1761221333740,0.04362,108900.0,108890.0,0.1483502]
[1761221334340,0.1354318,108900.0,108890.0,0.1483502]
[1761221335339,0.04362,108900.0,108890.0,0.1483502]
[1761221336151,0.04739386,108910.0,108900.0,0.1513818]
[1761221336335,0.04521,108910.0,108900.0,0.1513818]
[1761221336664,0.02297,108910.0,108900.0,0.1513818]
[1761221337147,0.50715936,108920.0,108910.0,0.1513734]
[1761221338555,0.17523046,108930.0,108920.0,0.137985]
[1761221338739,0.1508066,108930.0,108920.0,0.151365]
[1761221339143,0.04521,108930.0,108920.0,0.151365]
[1761221339449,0.1369965,108930.0,108920.0,0.151365]
[1761221339840,0.1379965,108930.0,108920.0,0.151365]
[1761221340040,0.1518765,108930.0,108920.0,0.04619]
[1761221340250,0.33983699,108930.0,108920.0,0.37803]
[1761221340549,0.33983699,108930.0,108920.0,0.4698249]
[1761221340945,0.1518765,108930.0,108920.0,0.4698249]
[1761221341156,0.1518765,108930.0,108920.0,0.469825]
[1761221342157,0.04621,108930.0,108920.0,0.483205]
[1761221343653,0.02397,108930.0,108920.0,0.483205]
[1761221344746,0.02297,108930.0,108920.0,0.483205]
[1761221344943,0.04521,108930.0,108920.0,0.483205]
[1761221345147,0.1369965,108930.0,108920.0,0.483205]
[1761221345539,0.04521,108930.0,108920.0,0.483205]
[1761221345749,0.1508765,108930.0,108920.0,0.483205]
[1761221345954,0.04521,108930.0,108920.0,0.483205]
[1761221346254,0.1369965,108930.0,108920.0,0.483205]
[1761221346751,0.04521,108930.0,108920.0,0.483205]
[1761221347742,0.03612,108940.0,108920.0,0.483205]
[1761221347943,0.1147481,108940.0,108930.0,0.1513565]
[1761221348149,0.1369881,108940.0,108930.0,0.1513565]
[1761221348753,0.05001,108950.0,108940.0,0.1513481]
[1761221348946,0.02777,108950.0,108940.0,0.4830681]
[1761221349251,0.0048,108950.0,108940.0,0.4830681]
[1761221350457,0.0058,108950.0,108940.0,0.4830681]
[1761221351045,0.0058,108950.0,108940.0,1.07102859]
[1761221351253,0.33880339,108970.0,108960.0,0.04619]
[1761221351552,0.33880339,108970.0,108960.0,0.4696313]
[1761221351756,0.1508429,108970.0,108960.0,0.4696313]
[1761221352757,0.001,108970.0,108960.0,0.4830113]
[1761221353142,0.04621,108970.0,108960.0,0.4830113]
[1761221353557,0.003,108970.0,108960.0,0.4830113]
[1761221354450,0.0947529,108970.0,108960.0,0.4830113]
[1761221354651,0.003,108970.0,108960.0,0.4830113]
[1761221355657,0.0947529,108970.0,108960.0,0.4830113]
[1761221355855,0.003,108970.0,108960.0,0.4830113]
[1761221356560,0.1399629,108970.0,108960.0,0.1513313]
[1761221356857,0.1399629,108970.0,108960.0,0.4829313]
[1761221357052,0.04821,108970.0,108960.0,0.4829313]
[1761221357858,0.1399629,108970.0,108960.0,0.4829313]
[1761221358861,0.003,108970.0,108960.0,0.67089179]
[1761221359256,0.003,108970.0,108960.0,1.07089179]
[1761221361362,0.02777,108990.0,108980.0,0.1513144]
[1761221361661,0.141746,108990.0,108980.0,0.4827944]
[1761221362554,0.142746,108990.0,108980.0,0.4827944]
[1761221362857,0.05101,108990.0,108980.0,0.4827944]
[1761221363358,0.145746,108990.0,108980.0,0.4827944]
[1761221363762,0.0088,108990.0,108980.0,0.4827944]
[1761221363961,0.0088,108990.0,108980.0,0.67075489]
[1761221364862,0.0088,108990.0,108980.0,1.07075489]
[1761221365954,0.0088,108990.0,108980.0,0.8827944]
[1761221366153,0.0088,108990.0,108980.0,0.1513144]
[1761221366154,0.146106,108990.0,108980.0,0.1513144]
[1761221366354,0.146106,108990.0,108980.0,0.4827144]
[1761221366668,0.159356,108990.0,108980.0,0.4827144]
[1761221366965,0.159356,108990.0,108980.0,0.4826744]
[1761221367159,0.159356,108990.0,108980.0,0.1513144]
[1761221367365,0.159356,108990.0,108980.0,0.4826744]
[1761221367660,0.156356,108990.0,108980.0,0.4826744]
[1761221367856,0.142106,108990.0,108980.0,0.1513144]
[1761221368058,0.142106,108990.0,108980.0,0.4826344]
[1761221369561,0.05037,108990.0,108980.0,0.4826344]
[1761221369766,0.05037,108990.0,108980.0,1.07059489]
[1761221369767,0.0058,108990.0,108980.0,1.07059489]
[1761221370269,0.0048,108990.0,108980.0,1.07059489]
[1761221371351,0.0917254,109010.0,109000.0,0.03495]
[1761221371352,0.1137554,109010.0,109000.0,0.03495]
[1761221371558,0.1365454,109010.0,109000.0,0.4810476]
[1761221372167,0.04482,109010.0,109000.0,0.4810476]
[1761221372369,0.16082816,109020.0,109010.0,0.1497592]
[1761221372568,0.1365332,109020.0,109010.0,0.1497592]
[1761221373168,0.1365332,109020.0,109010.0,0.1364292]
[1761221373668,0.04482,109020.0,109010.0,0.1364292]
[1761221374171,0.1385308,109020.0,109010.0,0.1364292]
[1761221374368,0.04682,109020.0,109010.0,0.1364292]
[1761221374770,0.1385308,109020.0,109010.0,0.1364292]
[1761221375573,0.1375308,109020.0,109010.0,0.1364292]
[1761221376163,0.1375308,109020.0,109010.0,0.1497592]
[1761221376363,0.04582,109020.0,109010.0,0.1497592]
[1761221376867,0.17886736,109030.0,109020.0,0.0917107]
[1761221377075,0.16561736,109030.0,109020.0,0.4809107]
[1761221377969,0.17841736,109030.0,109020.0,0.4809107]
[1761221378369,0.17841736,109030.0,109020.0,0.4675807]
[1761221378872,0.18668755,109030.0,109020.0,0.4675807]
[1761221379073,0.23656815,109030.0,109020.0,0.37587]
[1761221379576,0.23656815,109030.0,109020.0,0.4675808]
[1761221379769,0.23656815,109030.0,109020.0,0.04471]
[1761221380072,0.23656815,109030.0,109020.0,0.4675408]
[1761221380773,0.38656821,109030.0,109020.0,0.4675408]
[1761221380976,0.38656821,109030.0,109020.0,0.37583]
[1761221381573,0.38656821,109030.0,109020.0,0.4675408]
[1761221382077,0.38656821,109030.0,109020.0,0.37583]
[1761221382273,0.35400306,109030.0,109020.0,0.37583]
[1761221382974,0.35400306,109030.0,109020.0,0.04471]
[1761221383173,0.35400306,109030.0,109020.0,0.37575]
[1761221383376,0.38651151,109030.0,109020.0,0.52575006]
[1761221383570,0.38651151,109030.0,109020.0,0.37575]
[1761221383970,0.35400306,109030.0,109020.0,0.37575]
[1761221384178,0.35400306,109030.0,109020.0,0.4674608]
[1761221385377,0.26230066,109030.0,109020.0,0.4807908]
[1761221385676,0.26230066,109030.0,109020.0,0.63079086]
[1761221385875,0.26230066,109030.0,109020.0,0.4807908]
[1761221386077,0.35400306,109030.0,109020.0,0.63529086]
[1761221388278,0.35400306,109030.0,109020.0,0.63079086]
[1761221388671,0.36206175,109030.0,109020.0,0.63079086]
[1761221388878,0.27035935,109030.0,109020.0,0.63079086]
[1761221389367,0.36206175,109030.0,109020.0,0.63079086]
[1761221390073,0.32952501,109030.0,109020.0,0.37575]
[1761221390275,0.3376592,109030.0,109020.0,0.37575]
[1761221390479,0.3376592,109030.0,109020.0,0.4674608]
[1761221391876,0.329543,109030.0,109020.0,0.4674608]
[1761221392684,0.32954473,109030.0,109020.0,0.4674608]
[1761221393686,0.16674284,109030.0,109020.0,0.4811508]
[1761221393875,0.07504054,109030.0,109020.0,0.4811508]
[1761221394180,0.31674463,109030.0,109020.0,0.4811508]
[1761221396483,0.32952463,109030.0,109020.0,0.38944]
[1761221396883,0.32952463,109030.0,109020.0,0.37575]
[1761221397582,0.33764083,109030.0,109020.0,0.37575]
[1761221397888,0.33764083,109030.0,109020.0,0.4674608]
[1761221398876,0.33764083,109030.0,109020.0,0.04471]
[1761221398877,0.38652143,109030.0,109020.0,0.04471]
[1761221399079,0.38652143,109030.0,109020.0,0.37551]
[1761221399278,0.38659609,109030.0,109020.0,0.37551]
[1761221399685,0.35398469,109030.0,109020.0,0.04471]
[1761221401085,0.35398469,109030.0,109010.0,0.37339]
[1761221401086,0.1485607,109020.0,109010.0,0.37339]
[1761221401289,0.35566186,109020.0,109010.0,0.4651092]
[1761221401678,0.35566186,109020.0,109010.0,0.4787992]
[1761221402176,0.05709937,109020.0,109010.0,0.4787992]
[1761221402379,0.05709937,109020.0,109010.0,0.62880099]
[1761221403391,0.14881017,109020.0,109010.0,0.62880099]
[1761221404390,0.05709937,109020.0,109010.0,0.62880099]
[1761221404690,0.02447116,109020.0,109010.0,0.62880099]
[1761221405476,0.04549116,109020.0,109010.0,0.4787992]
[1761221405884,0.02447116,109020.0,109010.0,0.4787992]
[1761221406388,0.02447116,109020.0,109010.0,0.62880099]
[1761221407190,0.04549116,109020.0,109010.0,0.62880099]
[1761221407392,0.13720196,109020.0,109010.0,0.4787992]
[1761221408185,0.02447116,109020.0,109010.0,0.4787992]
[1761221408386,0.11618196,109020.0,109010.0,0.4787992]
[1761221408585,0.02447116,109020.0,109010.0,0.62880099]
[1761221408783,0.06189937,109030.0,109020.0,0.1480308]
[1761221408982,0.03267742,109050.0,109040.0,0.1263939]
[1761221409192,0.02102,109060.0,109050.0,0.1053755]
[1761221409495,0.02102,109060.0,109050.0,0.29800729]
[1761221409690,0.15989367,109070.0,109060.0,0.1479971]
[1761221409885,0.15989367,109070.0,109060.0,0.4785571]
[1761221410090,0.30989546,109070.0,109060.0,0.4785571]
[1761221410993,0.30989546,109070.0,109060.0,0.37319]
[1761221411193,0.70989546,109070.0,109060.0,0.02101]
[1761221411394,0.1357639,109040.0,109030.0,0.05632]
[1761221411590,0.28576569,109040.0,109030.0,0.38684]
[1761221411791,0.29854569,109040.0,109030.0,0.4785423]
[1761221412098,0.1485439,109040.0,109030.0,0.4785423]
[1761221412298,0.1357639,109040.0,109030.0,0.4785423]
[1761221412597,0.02102,109040.0,109030.0,0.4785423]
[1761221412794,0.1357575,109050.0,109040.0,0.148014]
[1761221413098,0.0916875,109050.0,109040.0,0.148014]
[1761221413288,0.02102,109050.0,109040.0,0.29801579]
[1761221413485,0.0916855,109050.0,109040.0,0.29801579]
[1761221413699,0.1127055,109050.0,109040.0,0.29801579]
[1761221414303,0.02102,109050.0,109040.0,0.29801579]
[1761221414593,0.1485328,109060.0,109050.0,0.0916855]
[1761221414794,0.1485328,109060.0,109050.0,0.4784855]
[1761221415997,0.1357528,109060.0,109050.0,0.4784855]
[1761221416198,0.1126971,109060.0,109050.0,0.4784855]
[1761221416394,0.1357471,109060.0,109050.0,0.4784855]
[1761221417195,0.09293918,109100.0,109090.0,0.1053419]
[1761221417398,0.09293918,109100.0,109090.0,0.1479719]
[1761221417399,0.40024664,109100.0,109090.0,0.1479719]
[1761221417595,0.35142,109100.0,109090.0,0.1479719]
[1761221417795,0.4661135,109100.0,109090.0,0.1479719]
[1761221417995,0.04407,109100.0,109090.0,0.1479719]
[1761221418201,0.37447,109100.0,109090.0,0.1479719]
[1761221418408,0.4661135,109100.0,109090.0,0.1479719]
[1761221419095,0.04407,109100.0,109090.0,0.1479719]
[1761221419294,0.33636,109100.0,109090.0,0.1479719]
[1761221419499,0.4720735,109100.0,109090.0,0.05632]
[1761221419801,0.4720735,109100.0,109090.0,0.04263]
[1761221419990,0.79894998,109100.0,109090.0,0.04263]
[1761221420193,0.4720735,109100.0,109090.0,0.04263]
[1761221420599,0.4720735,109100.0,109090.0,0.1342819]
[1761221420999,0.4670735,109100.0,109090.0,0.1342819]
[1761221422509,0.4670735,109100.0,109090.0,0.04263]
[1761221422808,0.79440998,109100.0,109090.0,0.0425]
[1761221423409,0.4803135,109100.0,109090.0,0.0425]
[1761221423610,0.4670735,109100.0,109090.0,0.1341519]
[1761221423903,0.4803135,109100.0,109090.0,0.0425]
[1761221424097,0.001,109100.0,109090.0,0.46162838]
[1761221424301,0.18604,109110.0,109100.0,0.1493435]
[1761221424709,0.2993251,109110.0,109100.0,0.1493435]
[1761221425003,0.18604,109110.0,109100.0,0.1493435]
[1761221425317,0.4266751,109110.0,109100.0,0.1493435]
[1761221425896,0.0048,109110.0,109100.0,0.1493435]
[1761221426105,0.1348083,109130.0,109120.0,0.1369167]
[1761221426601,0.4650083,109130.0,109120.0,0.1369167]
[1761221427110,0.4650083,109130.0,109120.0,0.04529]
[1761221427311,0.4670083,109130.0,109120.0,0.04529]
[1761221427611,0.4670083,109130.0,109120.0,0.1369167]
[1761221428905,0.4670083,109130.0,109120.0,0.04529]
[1761221429104,0.4799783,109130.0,109120.0,0.04529]
[1761221429501,0.1477867,109120.0,109110.0,0.04529]
[1761221429705,0.1477867,109120.0,109110.0,0.05792]
[1761221430008,0.1477867,109120.0,109110.0,0.04529]
[1761221430197,0.1348167,109120.0,109110.0,0.05792]
[1761221430398,0.1348167,109120.0,109110.0,0.1495551]
[1761221430608,0.1348167,109120.0,109100.0,0.04529]
[1761221430609,0.1258751,109110.0,109100.0,0.04529]
[1761221430798,0.1258751,109110.0,109100.0,0.1369335]
[1761221430799,0.4778751,109110.0,109100.0,0.1369335]
[1761221431202,0.4778751,109110.0,109100.0,0.1495635]
[1761221431402,0.4649051,109110.0,109100.0,0.1495635]
[1761221432308,0.37327,109110.0,109100.0,0.1495635]
[1761221432607,0.1348251,109110.0,109100.0,0.1495635]
[1761221432911,0.4649051,109110.0,109100.0,0.1495635]
[1761221433299,0.1478035,109100.0,109090.0,0.02313]
[1761221433500,0.1478119,109090.0,109080.0,0.04529]
[1761221433709,0.4778519,109090.0,109080.0,0.04529]
[1761221434501,0.4778519,109090.0,109080.0,0.1369503]
[1761221434502,0.4648819,109090.0,109080.0,0.1369503]
[1761221435711,0.04319,109090.0,109080.0,0.1369503]
[1761221436105,0.37323,109090.0,109080.0,0.1369503]
[1761221436911,0.4648819,109090.0,109080.0,0.1369503]
[1761221437406,0.1478203,109080.0,109070.0,0.1369557]
[1761221438007,0.1348503,109080.0,109070.0,0.1369557]
[1761221438511,0.1348503,109080.0,109070.0,0.04529]
[1761221439410,0.1348503,109080.0,109070.0,0.1369587]
[1761221440011,0.1478203,109080.0,109070.0,0.001]
[1761221440320,0.46191678,109080.0,109070.0,0.001]
[1761221440819,0.86191678,109080.0,109070.0,0.001]
[1761221441621,0.1348587,109070.0,109060.0,0.14154992]
[1761221442214,0.1348587,109070.0,109060.0,0.14155152]
[1761221442412,0.4648587,109070.0,109060.0,0.14155152]
[1761221442606,0.02127,109070.0,109060.0,0.14155152]
[1761221442809,0.1358542,109080.0,109070.0,0.1369587]
[1761221443007,0.4658542,109080.0,109070.0,0.1369587]
[1761221443211,0.4648542,109080.0,109070.0,0.1369587]
[1761221444015,0.79192068,109080.0,109070.0,0.02313]
[1761221444221,0.1348587,109070.0,109060.0,0.04987442]
[1761221445421,0.1348587,109070.0,109060.0,0.14155152]
[1761221446224,0.1348587,109070.0,109060.0,0.14255152]
[1761221446928,0.1348587,109070.0,109060.0,0.14155152]
[1761221447318,0.4648187,109070.0,109060.0,0.14155152]
[1761221452023,0.4648187,109070.0,109060.0,0.04987442]
[1761221452720,0.4648187,109070.0,109060.0,0.14155152]
[1761221454130,0.4648187,109070.0,109060.0,0.15555152]
[1761221456626,0.1043021,109090.0,109060.0,0.74290507]
[1761221456627,0.01265,109090.0,109060.0,0.74290507]
[1761221456821,0.1362725,109090.0,109080.0,0.1500203]
[1761221457124,0.4661525,109090.0,109080.0,0.05836]
[1761221457431,0.4661525,109090.0,109080.0,0.1500203]
[1761221458524,0.1362725,109090.0,109080.0,0.1500203]
[1761221458925,0.1362719,109090.0,109080.0,0.1500203]
[1761221459224,0.1362673,109100.0,109090.0,0.1500119]
[1761221459432,0.4661435,109100.0,109090.0,0.1500119]
[1761221460223,0.02147,109100.0,109090.0,0.1500119]
[1761221460432,0.02147,109110.0,109100.0,0.1499954]
[1761221460628,0.1362551,109110.0,109100.0,0.05836]
[1761221460821,0.1362551,109110.0,109100.0,0.1500035]
[1761221461027,0.4660951,109110.0,109100.0,0.1500035]
[1761221461222,0.4787451,109110.0,109090.0,0.03861519]
[1761221461525,0.1043019,109090.0,109080.0,0.04624519]
[1761221461831,0.37446,109090.0,109080.0,0.17463549]
[1761221462029,0.1489113,109110.0,109100.0,0.04436]
[1761221462225,0.4787513,109110.0,109100.0,0.04436]
[1761221462527,0.1362703,109100.0,109090.0,0.04436]
[1761221462724,0.1362703,109100.0,109090.0,0.02163]
[1761221463330,0.1362635,109100.0,109090.0,0.1360119]
[1761221463633,0.4660635,109100.0,109090.0,0.1360119]
[1761221464323,0.1362635,109100.0,109090.0,0.04436]
[1761221464634,0.1362719,109090.0,109080.0,0.17462749]
[1761221465227,0.04462,109090.0,109080.0,0.17462749]
[1761221465536,0.04462,109090.0,109080.0,0.36198104]
[1761221465733,0.37438,109090.0,109080.0,0.36298104]
[1761221466034,0.37438,109090.0,109080.0,0.17562749]
[1761221466832,0.1362602,109110.0,109100.0,0.1360035]
[1761221467031,0.4660202,109110.0,109100.0,0.04436]
[1761221467433,0.1489135,109100.0,109090.0,0.06897519]
[1761221467635,0.1489135,109100.0,109090.0,0.04436]
[1761221468536,0.33626705,109100.0,109090.0,0.04436]
[1761221468724,0.1362719,109090.0,109080.0,0.17463529]
[1761221469036,0.04462,109090.0,109080.0,0.36198884]
[1761221469534,0.04462,109090.0,109080.0,0.17463529]
[1761221469732,0.1362719,109090.0,109080.0,0.17463529]
[1761221471339,0.1362719,109090.0,109080.0,0.17563529]
[1761221472240,0.1362719,109090.0,109080.0,0.17463529]
[1761221476239,0.4785619,109090.0,109080.0,0.02461519]
[1761221476443,0.1362887,109070.0,109060.0,0.17923401]
[1761221476638,0.1362887,109070.0,109060.0,0.15461882]
[1761221476839,0.1362887,109070.0,109060.0,0.06294442]
[1761221477234,0.4658887,109070.0,109060.0,0.06294442]
[1761221477446,0.4658887,109070.0,109060.0,0.15462152]
[1761221478648,0.4658887,109070.0,109060.0,0.15562152]
[1761221479753,0.4785387,109070.0,109060.0,0.15562152]
[1761221480248,0.38687,109070.0,109060.0,0.15562152]
[1761221480452,0.04462,109070.0,109060.0,0.36759026]
[1761221480752,0.4658865,109080.0,109070.0,0.1500287]
[1761221480953,0.4785365,109080.0,109070.0,0.1500287]